{"text_format":"3","workbook":"xlsx","n_sheets":1,"sheets":["Einkaufsliste"],"not_rendered":{"images":1,"defined_names":3},"read":"whole","date_system":"1900"}

{"sheet":"Einkaufsliste","index":0,"n_rows":31,"n_cols":8,"rows_kept":31}
[null,"Einkaufsliste"]
[null,"DATUM"]
[null,"Erledigt?","Artikel","Kategorie","Menge","Preis","Preis pro Artikel","Marke/Kommentare"]
[null,null,"Orangen","Obst und Gemüse",null,null,{"$f":"IFERROR(SUM(Einkaufsliste[[#This Row],[Menge]]*Einkaufsliste[[#This Row],[Preis]]), \"\")","v":{"v":0,"d":"0.00 €"}}]
[null,null,"Äpfel","Obst und Gemüse",null,null,{"$f":"IFERROR(SUM(Einkaufsliste[[#This Row],[Menge]]*Einkaufsliste[[#This Row],[Preis]]), \"\")","v":{"v":0,"d":"0.00 €"}}]
[null,null,"Bananen","Obst und Gemüse",null,null,{"$f":"IFERROR(SUM(Einkaufsliste[[#This Row],[Menge]]*Einkaufsliste[[#This Row],[Preis]]), \"\")","v":{"v":0,"d":"0.00 €"}}]
[null,null,"Salat","Obst und Gemüse",null,null,{"$f":"IFERROR(SUM(Einkaufsliste[[#This Row],[Menge]]*Einkaufsliste[[#This Row],[Preis]]), \"\")","v":{"v":0,"d":"0.00 €"}}]
[null,null,"Tomaten","Obst und Gemüse",null,null,{"$f":"IFERROR(SUM(Einkaufsliste[[#This Row],[Menge]]*Einkaufsliste[[#This Row],[Preis]]), \"\")","v":{"v":0,"d":"0.00 €"}},"  "]
[null,null,"Milch ","Milchprodukte",null,null,{"$f":"IFERROR(SUM(Einkaufsliste[[#This Row],[Menge]]*Einkaufsliste[[#This Row],[Preis]]), \"\")","v":{"v":0,"d":"0.00 €"}}]
[null,null,"Käse","Milchprodukte",null,null,{"$f":"IFERROR(SUM(Einkaufsliste[[#This Row],[Menge]]*Einkaufsliste[[#This Row],[Preis]]), \"\")","v":{"v":0,"d":"0.00 €"}}]
[null,null,"Eier","Milchprodukte",null,null,{"$f":"IFERROR(SUM(Einkaufsliste[[#This Row],[Menge]]*Einkaufsliste[[#This Row],[Preis]]), \"\")","v":{"v":0,"d":"0.00 €"}}]
[null,null,"Hüttenkäse","Milchprodukte",null,null,{"$f":"IFERROR(SUM(Einkaufsliste[[#This Row],[Menge]]*Einkaufsliste[[#This Row],[Preis]]), \"\")","v":{"v":0,"d":"0.00 €"}}]
[null,null,"Rindfleisch","Fleisch",null,null,{"$f":"IFERROR(SUM(Einkaufsliste[[#This Row],[Menge]]*Einkaufsliste[[#This Row],[Preis]]), \"\")","v":{"v":0,"d":"0.00 €"}}]
[null,null,"Geflügel","Fleisch",null,null,{"$f":"IFERROR(SUM(Einkaufsliste[[#This Row],[Menge]]*Einkaufsliste[[#This Row],[Preis]]), \"\")","v":{"v":0,"d":"0.00 €"}}]
[null,null,"Schinken","Fleisch",null,null,{"$f":"IFERROR(SUM(Einkaufsliste[[#This Row],[Menge]]*Einkaufsliste[[#This Row],[Preis]]), \"\")","v":{"v":0,"d":"0.00 €"}}]
[null,null,"Saft","Getränke",null,null,{"$f":"IFERROR(SUM(Einkaufsliste[[#This Row],[Menge]]*Einkaufsliste[[#This Row],[Preis]]), \"\")","v":{"v":0,"d":"0.00 €"}}]
[null,null,"Kaffee","Getränke",null,null,{"$f":"IFERROR(SUM(Einkaufsliste[[#This Row],[Menge]]*Einkaufsliste[[#This Row],[Preis]]), \"\")","v":{"v":0,"d":"0.00 €"}}]
[null,null,"Tee","Getränke",null,null,{"$f":"IFERROR(SUM(Einkaufsliste[[#This Row],[Menge]]*Einkaufsliste[[#This Row],[Preis]]), \"\")","v":{"v":0,"d":"0.00 €"}}]
[null,null,"Wasser","Getränke",null,null,{"$f":"IFERROR(SUM(Einkaufsliste[[#This Row],[Menge]]*Einkaufsliste[[#This Row],[Preis]]), \"\")","v":{"v":0,"d":"0.00 €"}}]
[null,null,"Nudeln","Teigwaren",null,null,{"$f":"IFERROR(SUM(Einkaufsliste[[#This Row],[Menge]]*Einkaufsliste[[#This Row],[Preis]]), \"\")","v":{"v":0,"d":"0.00 €"}}]
[null,null,"Reis","Teigwaren",null,null,{"$f":"IFERROR(SUM(Einkaufsliste[[#This Row],[Menge]]*Einkaufsliste[[#This Row],[Preis]]), \"\")","v":{"v":0,"d":"0.00 €"}}]
[null,null,"Konserve","Suppe",null,null,{"$f":"IFERROR(SUM(Einkaufsliste[[#This Row],[Menge]]*Einkaufsliste[[#This Row],[Preis]]), \"\")","v":{"v":0,"d":"0.00 €"}}]
[null,null,"Trockenmischung","Suppe",null,null,{"$f":"IFERROR(SUM(Einkaufsliste[[#This Row],[Menge]]*Einkaufsliste[[#This Row],[Preis]]), \"\")","v":{"v":0,"d":"0.00 €"}}]
[null,null,"Brot","Backwaren",null,null,{"$f":"IFERROR(SUM(Einkaufsliste[[#This Row],[Menge]]*Einkaufsliste[[#This Row],[Preis]]), \"\")","v":{"v":0,"d":"0.00 €"}}]
[null,null,"Kartoffelchips","Snacks",null,null,{"$f":"IFERROR(SUM(Einkaufsliste[[#This Row],[Menge]]*Einkaufsliste[[#This Row],[Preis]]), \"\")","v":{"v":0,"d":"0.00 €"}}]
[null,null,"Brezeln","Snacks",null,null,{"$f":"IFERROR(SUM(Einkaufsliste[[#This Row],[Menge]]*Einkaufsliste[[#This Row],[Preis]]), \"\")","v":{"v":0,"d":"0.00 €"}}]
[null,null,"Speiseeis","Snacks",null,null,{"$f":"IFERROR(SUM(Einkaufsliste[[#This Row],[Menge]]*Einkaufsliste[[#This Row],[Preis]]), \"\")","v":{"v":0,"d":"0.00 €"}}]
[null,null,"Kekse","Snacks",null,null,{"$f":"IFERROR(SUM(Einkaufsliste[[#This Row],[Menge]]*Einkaufsliste[[#This Row],[Preis]]), \"\")","v":{"v":0,"d":"0.00 €"}}]
[null,null,"Pappteller","Vorrat",null,null,{"$f":"IFERROR(SUM(Einkaufsliste[[#This Row],[Menge]]*Einkaufsliste[[#This Row],[Preis]]), \"\")","v":{"v":0,"d":"0.00 €"}}]
[null,null,"Servietten","Vorrat",null,null,{"$f":"IFERROR(SUM(Einkaufsliste[[#This Row],[Menge]]*Einkaufsliste[[#This Row],[Preis]]), \"\")","v":{"v":0,"d":"0.00 €"}}]
[{"$nulls":6},{"$f":"SUBTOTAL(109,Einkaufsliste[Preis pro Artikel])","v":{"v":0,"d":"0.00 €"}}]